[Event "44th Chess Olympiad Women 2022"]
[Site "Chennai"]
[Date "2022.08.06"]
[Round "8.40"]
[White "Ofowino, Toritsemuwa"]
[Black "Ranasinghe, S D.."]
[Result "0-1"]
[WhiteElo "1870"]
[BlackElo "1687"]
[Annotator "NA RC"]
[PlyCount "102"]
[EventDate "2022.??.??"]
[TimeControl "60"]

1. d4 {[%emt 0:00:11]} d5 {[%emt 0:00:04]} 2. Nf3 {[%emt 0:00:07]} e6 {[%emt 0:
00:00]} 3. Bf4 {[%emt 0:00:18]} Bd6 {[%emt 0:00:15]} 4. e3 {[%emt 0:00:27]} Ne7
{[%emt 0:00:22]} 5. Bg3 {[%emt 0:00:34]} Nf5 {[%emt 0:00:42]} 6. Bd3 {[%emt 0:
00:00]} Nxg3 {[%emt 0:00:06]} 7. hxg3 {[%emt 0:00:25]} h6 {[%emt 0:00:11]} 8.
Nbd2 {[%emt 0:15:37]} c5 {[%emt 0:01:13]} 9. c3 {[%emt 0:01:13]} Nc6 {[%emt 0:
00:00]} 10. O-O {[%emt 0:01:22]} cxd4 {[%emt 0:00:59]} 11. exd4 {[%emt 0:01:00]
} O-O {[%emt 0:00:40]} 12. Re1 {[%emt 0:00:45]} Qf6 {[%emt 0:00:57]} 13. Qe2 {
[%emt 0:00:46]} Qe7 {[%emt 0:00:56]} 14. Ne5 {[%emt 0:00:52]} Nxe5 {[%emt 0:00:
00]} 15. dxe5 {[%emt 0:00:12]} Bc7 {[%emt 0:02:59]} 16. Nf3 {[%emt 0:00:40]}
Bd7 {[%emt 0:00:27]} 17. g4 {[%emt 0:15:11]} Bc6 {[%emt 0:02:28]} 18. g3 {
[%emt 0:02:11]} Bb6 {[%emt 0:01:07]} 19. Bc2 {[%emt 0:02:53]} a6 {[%emt 0:00:
00]} 20. a4 {[%emt 0:03:29]} Rfd8 {[%emt 0:00:51]} 21. Red1 {[%emt 0:01:50]}
Ba7 {[%emt 0:01:06]} 22. Nd4 {[%emt 0:00:25]} Bxd4 {[%emt 0:00:51]} 23. Rxd4 {
[%emt 0:00:25]} b5 {[%emt 0:00:06]} 24. Qd3 {[%emt 0:13:40]} g6 {[%emt 0:00:16]
} 25. Qd2 {[%emt 0:00:39]} Kg7 {[%emt 0:00:08]} 26. Kg2 {[%emt 0:00:38]} bxa4 {
[%emt 0:00:32]} 27. Bxa4 {[%emt 0:01:32]} Bxa4 {[%emt 0:00:05]} 28. Rdxa4 {
[%emt 0:00:13]} Qb7 {[%emt 0:00:05]} 29. f3 {[%emt 0:00:36]} g5 {[%emt 0:00:25]
} 30. R1a2 {[%emt 0:00:36]} Rdc8 {[%emt 0:02:02]} 31. Qd4 {[%emt 0:05:20]} Qb5
{[%emt 0:00:27]} 32. Qd1 {[%emt 0:08:05]} Rc4 {[%emt 0:02:07]} 33. Ra5 {
[%emt 0:00:00]} Qb6 {[%emt 0:00:32]} 34. Qa1 {[%emt 0:00:00]} Qe3 {[%emt 0:00:
00]} 35. Qd1 {[%emt 0:00:56]} Qxe5 {[%emt 0:01:21]} 36. Rxa6 {[%emt 0:08:05]}
Rxa6 {[%emt 0:00:38]} 37. Rxa6 {[%emt 0:00:01]} d4 {[%emt 0:00:16]} 38. Qd3 {
[%emt 0:00:29]} Qb5 {[%emt 0:01:39]} 39. Rb6 {[%emt 0:01:38]} Qxb6 {[%emt 0:00:
00]} 40. Qxc4 {[%emt 0:00:13]} Qxb2+ {[%emt 0:00:05]} 41. Kf1 {[%emt 0:30:30]}
Qc1+ {[%emt 0:30:33]} 42. Ke2 {[%emt 0:01:00]} Qe3+ {[%emt 0:00:07]} 43. Kd1 {
[%emt 0:00:15]} Qxf3+ {[%emt 0:00:05]} 44. Kc2 {[%emt 0:00:36]} Qxc3+ {[%emt 0:
00:00]} 45. Qxc3 {[%emt 0:00:06]} dxc3 {[%emt 0:00:07]} 46. Kxc3 {[%emt 0:00:
00]} Kf6 {[%emt 0:00:21]} 47. Kd4 {[%emt 0:00:06]} Ke7 {[%emt 0:00:04]} 48. Kc5
{[%emt 0:00:17]} f6 {[%emt 0:00:12]} 49. Kc6 {[%emt 0:00:22]} f5 {[%emt 0:00:
00]} 50. gxf5 {[%emt 0:00:21]} exf5 {[%emt 0:00:05]} 51. Kd5 {[%emt 0:00:05]}
Kf6 {[%emt 0:00:03]} 0-1

[Event "44th Chess Olympiad Women 2022"]
[Site "Chennai"]
[Date "2022.08.06"]
[Round "8.40"]
[White "Onoja, Iyefu Joy"]
[Black "Abeysinghe, H M H Janandani"]
[Result "1/2-1/2"]
[WhiteElo "1869"]
[BlackElo "1516"]
[Annotator "NA RC"]
[PlyCount "234"]
[EventDate "2022.??.??"]
[TimeControl "60"]

1. d4 {[%emt 0:00:05]} Nf6 {[%emt 0:00:29]} 2. Nc3 {[%emt 0:01:13]} g6 {
[%emt 0:00:32]} 3. e4 {[%emt 0:00:09]} d6 {[%emt 0:00:05]} 4. Be3 {[%emt 0:00:
00]} Bg7 {[%emt 0:00:17]} 5. f3 {[%emt 0:00:11]} Nbd7 {[%emt 0:00:32]} 6. Be2 {
[%emt 0:01:49]} a6 {[%emt 0:00:32]} 7. Qd2 {[%emt 0:00:17]} h5 {[%emt 0:00:46]}
8. h4 {[%emt 0:00:23]} b5 {[%emt 0:01:10]} 9. a3 {[%emt 0:00:42]} Bb7 {[%emt 0:
00:00]} 10. Nh3 {[%emt 0:00:23]} c5 {[%emt 0:01:13]} 11. d5 {[%emt 0:01:08]}
Qa5 {[%emt 0:05:32]} 12. Kf2 {[%emt 0:02:42]} Rc8 {[%emt 0:04:36]} 13. Ng5 {
[%emt 0:04:45]} Ne5 {[%emt 0:05:44]} 14. b3 {[%emt 0:12:59]} Nh7 {[%emt 0:00:
00]} 15. Nb1 {[%emt 0:02:45]} Qc7 {[%emt 0:04:44]} 16. Ra2 {[%emt 0:01:36]} Nf6
{[%emt 0:08:11]} 17. g3 {[%emt 0:15:25]} Bh6 {[%emt 0:04:35]} 18. Kg2 {[%emt 0:
00:00]} Bg7 {[%emt 0:00:33]} 19. c3 {[%emt 0:09:04]} c4 {[%emt 0:05:52]} 20. b4
{[%emt 0:01:00]} O-O {[%emt 0:01:15]} 21. a4 {[%emt 0:05:21]} Qd7 {[%emt 0:00:
00]} 22. Bd4 {[%emt 0:08:29]} Nh7 {[%emt 0:07:05]} 23. Na3 {[%emt 0:10:06]}
Nxg5 {[%emt 0:02:31]} 24. hxg5 {[%emt 0:00:32]} e6 {[%emt 0:00:40]} 25. dxe6 {
[%emt 0:01:32]} fxe6 {[%emt 0:00:23]} 26. Bc5 {[%emt 0:00:51]} dxc5 {[%emt 0:
00:00]} 27. Qxd7 {[%emt 0:00:18]} Nxd7 {[%emt 0:00:03]} 28. axb5 {[%emt 0:00:
00]} cxb4 {[%emt 0:03:37]} 29. Nxc4 {[%emt 0:00:16]} Bxc3 {[%emt 0:00:49]} 30.
Nd6 {[%emt 0:00:49]} Rc7 {[%emt 0:01:42]} 31. Bc4 {[%emt 0:01:26]} Nc5 {
[%emt 0:00:58]} 32. bxa6 {[%emt 0:00:37]} Bc6 {[%emt 0:00:59]} 33. Ra5 {
[%emt 0:01:22]} Rd7 {[%emt 0:02:25]} 34. Rd1 {[%emt 0:01:09]} Rfd8 {[%emt 0:00:
00]} 35. e5 {[%emt 0:00:06]} Bxe5 {[%emt 0:01:41]} 36. Rxc5 {[%emt 0:00:09]}
Bd5 {[%emt 0:01:27]} 37. Bxd5 {[%emt 0:00:49]} exd5 {[%emt 0:00:24]} 38. Nb7 {
[%emt 0:00:08]} Ra8 {[%emt 0:00:33]} 39. Rdxd5 {[%emt 0:00:18]} Rxd5 {[%emt 0:
00:00]} 40. Rxd5 {[%emt 0:00:06]} Bc3 {[%emt 0:01:03]} 41. Rd6 {[%emt 0:30:35]}
b3 {[%emt 0:30:39]} 42. Rxg6+ {[%emt 0:00:22]} Kf7 {[%emt 0:00:09]} 43. Rb6 {
[%emt 0:00:10]} b2 {[%emt 0:00:32]} 44. Nd6+ {[%emt 0:00:06]} Kg7 {[%emt 0:00:
00]} 45. Nc4 {[%emt 0:00:43]} Rxa6 {[%emt 0:00:00]} 46. Rb7+ {[%emt 0:00:00]}
Kg6 {[%emt 0:00:00]} 47. Kh3 {[%emt 0:00:00]} Ra1 {[%emt 0:00:00]} 48. Nxb2 {
[%emt 0:00:00]} Rb1 {[%emt 0:00:00]} 49. Rb6+ {[%emt 0:00:00]} Kxg5 {[%emt 0:
00:00]} 50. Nc4 {[%emt 0:00:00]} Rxb6 {[%emt 0:00:00]} 51. Nxb6 {[%emt 0:00:03]
} Bd2 {[%emt 0:00:30]} 52. Nc4 {[%emt 0:00:00]} Be1 {[%emt 0:02:12]} 53. Nd6 {
[%emt 0:00:00]} Kg6 {[%emt 0:00:00]} 54. Nc4 {[%emt 0:00:00]} Kg5 {[%emt 0:00:
00]} 55. Ne3 {[%emt 0:00:00]} Bd2 {[%emt 0:00:00]} 56. Ng2 {[%emt 0:00:00]} Kg6
{[%emt 0:00:00]} 57. Kh2 {[%emt 0:00:00]} Ba5 {[%emt 0:00:00]} 58. Kg1 {
[%emt 0:00:00]} Bb6+ {[%emt 0:00:00]} 59. Kf1 {[%emt 0:00:00]} Kg5 {[%emt 0:00:
00]} 60. Nh4 {[%emt 0:00:00]} Bc5 {[%emt 0:00:00]} 61. Kg2 {[%emt 0:00:00]} Bb6
{[%emt 0:00:00]} 62. Kh3 {[%emt 0:00:00]} Be3 {[%emt 0:00:00]} 63. Ng2 {
[%emt 0:00:00]} Bd2 {[%emt 0:00:00]} 64. f4+ {[%emt 0:00:00]} Kf5 {[%emt 0:00:
00]} 65. Nh4+ {[%emt 0:00:00]} Ke4 {[%emt 0:00:15]} 66. Ng6 {[%emt 0:00:00]}
Kf5 {[%emt 0:00:23]} 67. Nh4+ {[%emt 0:00:00]} Ke4 {[%emt 0:00:07]} 68. Ng6 {
[%emt 0:01:01]} Kf5 {[%emt 0:00:08]} 69. Ne7+ {[%emt 0:00:55]} Ke6 {[%emt 0:00:
00]} 70. Nc6 {[%emt 0:00:16]} Kf5 {[%emt 0:00:43]} 71. Nd4+ {[%emt 0:02:09]}
Ke4 {[%emt 0:01:24]} 72. Ne6 {[%emt 0:00:49]} Kf5 {[%emt 0:00:45]} 73. Ng7+ {
[%emt 0:01:43]} Kg6 {[%emt 0:00:40]} 74. Ne8 {[%emt 0:00:51]} Kf5 {[%emt 0:00:
00]} 75. Nd6+ {[%emt 0:00:12]} Ke6 {[%emt 0:00:59]} 76. Ne4 {[%emt 0:00:10]}
Be3 {[%emt 0:00:44]} 77. Kh4 {[%emt 0:00:24]} Kf5 {[%emt 0:01:00]} 78. Nd6+ {
[%emt 0:00:44]} Kg6 {[%emt 0:00:27]} 79. Nc4 {[%emt 0:00:23]} Bc1 {[%emt 0:00:
00]} 80. Ne5+ {[%emt 0:00:41]} Kh6 {[%emt 0:00:35]} 81. Kh3 {[%emt 0:02:48]}
Bd2 {[%emt 0:00:58]} 82. Nf3 {[%emt 0:01:14]} Bc1 {[%emt 0:00:21]} 83. Kg2 {
[%emt 0:00:23]} Kg6 {[%emt 0:00:14]} 84. Nh4+ {[%emt 0:00:05]} Kf6 {[%emt 0:00:
00]} 85. Kf3 {[%emt 0:00:07]} Bd2 {[%emt 0:00:30]} 86. Ng2 {[%emt 0:01:32]} Ba5
{[%emt 0:00:44]} 87. Ne3 {[%emt 0:00:38]} Be1 {[%emt 0:00:55]} 88. Nc2 {
[%emt 0:00:38]} Bc3 {[%emt 0:00:30]} 89. Ke4 {[%emt 0:00:29]} Ba5 {[%emt 0:00:
00]} 90. Ne3 {[%emt 0:01:26]} Be1 {[%emt 0:00:37]} 91. Nd5+ {[%emt 0:01:30]}
Kf7 {[%emt 0:00:33]} 92. Kf3 {[%emt 0:00:49]} Ke6 {[%emt 0:00:21]} 93. Ne3 {
[%emt 0:00:21]} Kf6 {[%emt 0:00:30]} 94. Ng2 {[%emt 0:00:25]} Ba5 {[%emt 0:00:
00]} 95. Ke4 {[%emt 0:00:08]} Bb6 {[%emt 0:00:20]} 96. Ne3 {[%emt 0:00:15]} Ba5
{[%emt 0:00:23]} 97. Nd5+ {[%emt 0:00:17]} Kf7 {[%emt 0:00:19]} 98. f5 {
[%emt 0:00:51]} Be1 {[%emt 0:00:43]} 99. Kf4 {[%emt 0:00:28]} Bd2+ {[%emt 0:00:
00]} 100. Kf3 {[%emt 0:01:06]} Be1 {[%emt 0:00:24]} 101. Kg2 {[%emt 0:00:43]}
Bd2 {[%emt 0:01:11]} 102. Kf3 {[%emt 0:00:51]} Be1 {[%emt 0:00:13]} 103. Nf4 {
[%emt 0:01:51]} Kf6 {[%emt 0:00:52]} 104. Nxh5+ {[%emt 0:03:02]} Kxf5 {[%emt 0:
00:00]} 105. g4+ {[%emt 0:00:20]} Kg5 {[%emt 0:00:32]} 106. Nf4 {[%emt 0:00:31]
} Bd2 {[%emt 0:00:59]} 107. Ne6+ {[%emt 0:00:16]} Kf6 {[%emt 0:00:23]} 108. Nc5
{[%emt 0:00:15]} Bh6 {[%emt 0:00:49]} 109. Ne4+ {[%emt 0:00:09]} Kg6 {[%emt 0:
00:00]} 110. Kg3 {[%emt 0:00:28]} Bc1 {[%emt 0:01:02]} 111. Kh4 {[%emt 0:00:10]
} Bf4 {[%emt 0:00:41]} 112. Nc5 {[%emt 0:00:37]} Bg5+ {[%emt 0:00:18]} 113. Kg3
{[%emt 0:00:09]} Bc1 {[%emt 0:00:14]} 114. Nd3 {[%emt 0:00:11]} Bh6 {[%emt 0:
00:00]} 115. Ne5+ {[%emt 0:00:23]} Kf6 {[%emt 0:00:24]} 116. Nf3 {[%emt 0:00:
00]} Kg6 {[%emt 0:00:14]} 117. Kh4 {[%emt 0:00:07]} Bf4 {[%emt 0:00:25]}
1/2-1/2

[Event "44th Chess Olympiad Women 2022"]
[Site "Chennai"]
[Date "2022.08.06"]
[Round "8.40"]
[White "Wijesuriya, G P Y.."]
[Black "Enomah Emmanuella Trust"]
[Result "0-1"]
[WhiteElo "1579"]
[BlackElo "1901"]
[Annotator "NA RC"]
[PlyCount "62"]
[EventDate "2022.??.??"]
[TimeControl "60"]

1. e4 {[%emt 0:00:24]} c5 {[%emt 0:00:04]} 2. Nc3 {[%emt 0:00:09]} e6 {[%emt 0:
00:00]} 3. f4 {[%emt 0:00:05]} a6 {[%emt 0:00:15]} 4. Nf3 {[%emt 0:00:06]} d6 {
[%emt 0:00:11]} 5. g3 {[%emt 0:00:07]} b5 {[%emt 0:00:08]} 6. Bg2 {[%emt 0:00:
00]} Bb7 {[%emt 0:00:06]} 7. d3 {[%emt 0:00:04]} Nd7 {[%emt 0:00:08]} 8. O-O {
[%emt 0:00:06]} Qc7 {[%emt 0:00:24]} 9. Qe1 {[%emt 0:00:13]} b4 {[%emt 0:00:41]
} 10. Na4 {[%emt 0:04:42]} Bc6 {[%emt 0:01:52]} 11. b3 {[%emt 0:00:05]} Ngf6 {
[%emt 0:02:10]} 12. Nb2 {[%emt 0:14:11]} Be7 {[%emt 0:00:17]} 13. e5 {[%emt 0:
00:00]} Nd5 {[%emt 0:01:30]} 14. Nc4 {[%emt 0:00:42]} dxe5 {[%emt 0:01:38]} 15.
fxe5 {[%emt 0:01:05]} O-O {[%emt 0:00:18]} 16. Bb2 {[%emt 0:05:17]} a5 {
[%emt 0:02:20]} 17. Nfd2 {[%emt 0:00:14]} a4 {[%emt 0:01:25]} 18. Ne4 {[%emt 0:
00:00]} a3 {[%emt 0:00:44]} 19. Bc1 {[%emt 0:01:16]} Nxe5 {[%emt 0:00:21]} 20.
Ng5 {[%emt 0:04:33]} Bf6 {[%emt 0:04:57]} 21. Qe4 {[%emt 0:22:46]} Ng6 {
[%emt 0:02:20]} 22. Nxe6 {[%emt 0:01:13]} fxe6 {[%emt 0:00:36]} 23. Qxe6+ {
[%emt 0:00:08]} Kh8 {[%emt 0:00:31]} 24. Nd6 {[%emt 0:00:55]} Bd4+ {[%emt 0:00:
00]} 25. Be3 {[%emt 0:01:58]} Nxe3 {[%emt 0:10:20]} 26. Rxf8+ {[%emt 0:13:16]}
Rxf8 {[%emt 0:00:11]} 27. Bxc6 {[%emt 0:00:04]} Nxc2+ {[%emt 0:00:32]} 28. Kg2
{[%emt 0:00:33]} Qxc6+ {[%emt 0:00:25]} 29. Kh3 {[%emt 0:00:04]} Qf3 {[%emt 0:
00:00]} 30. Qd7 {[%emt 0:18:04]} Nf4+ {[%emt 0:00:30]} 31. Kh4 {[%emt 0:00:17]}
Qh5# {[%emt 0:00:19]} 0-1

[Event "44th Chess Olympiad Women 2022"]
[Site "Chennai"]
[Date "2022.08.06"]
[Round "8.41"]
[White "Caxita, Esperanca"]
[Black "Charinda, Kudzanayi"]
[Result "1-0"]
[WhiteElo "1955"]
[BlackElo "1719"]
[Annotator "NA RC"]
[PlyCount "103"]
[EventDate "2022.??.??"]
[TimeControl "60"]

1. e4 {[%emt 0:00:04]} c5 {[%emt 0:00:35]} 2. Nc3 {[%emt 0:00:19]} d6 {[%emt 0:
00:00]} 3. Nf3 {[%emt 0:00:14]} Nc6 {[%emt 0:00:15]} 4. g3 {[%emt 0:00:08]} Nf6
{[%emt 0:00:21]} 5. Bg2 {[%emt 0:00:23]} e6 {[%emt 0:00:13]} 6. d3 {[%emt 0:00:
00]} Be7 {[%emt 0:04:01]} 7. O-O {[%emt 0:00:17]} O-O {[%emt 0:00:34]} 8. Re1 {
[%emt 0:01:29]} a6 {[%emt 0:01:52]} 9. a4 {[%emt 0:01:40]} Nd7 {[%emt 0:05:37]}
10. d4 {[%emt 0:08:27]} cxd4 {[%emt 0:01:45]} 11. Nxd4 {[%emt 0:00:18]} Nxd4 {
[%emt 0:04:00]} 12. Qxd4 {[%emt 0:00:18]} Ne5 {[%emt 0:01:28]} 13. b3 {[%emt 0:
00:00]} Bf6 {[%emt 0:01:34]} 14. Qd2 {[%emt 0:00:52]} Qb6 {[%emt 0:06:19]} 15.
a5 {[%emt 0:05:12]} Qc7 {[%emt 0:03:36]} 16. Bb2 {[%emt 0:00:43]} Bd7 {[%emt 0:
00:00]} 17. Red1 {[%emt 0:02:11]} Be7 {[%emt 0:21:58]} 18. Na4 {[%emt 0:01:18]}
Bxa4 {[%emt 0:01:19]} 19. Rxa4 {[%emt 0:00:14]} Nc6 {[%emt 0:03:19]} 20. Rc4 {
[%emt 0:06:18]} Qxa5 {[%emt 0:06:42]} 21. Qxa5 {[%emt 0:04:14]} Nxa5 {[%emt 0:
00:00]} 22. Rc7 {[%emt 0:00:15]} Rfe8 {[%emt 0:06:43]} 23. Bc3 {[%emt 0:06:17]}
b6 {[%emt 0:02:40]} 24. Bb4 {[%emt 0:07:23]} e5 {[%emt 0:07:44]} 25. Bh3 {
[%emt 0:02:45]} Rab8 {[%emt 0:03:41]} 26. Bxd6 {[%emt 0:07:22]} Rbd8 {[%emt 0:
00:00]} 27. Bd7 {[%emt 0:04:41]} Kf8 {[%emt 0:05:23]} 28. Bxe8 {[%emt 0:10:08]}
Bxd6 {[%emt 0:00:43]} 29. Rd7 {[%emt 0:00:50]} Rxd7 {[%emt 0:05:35]} 30. Bxd7 {
[%emt 0:00:18]} Ke7 {[%emt 0:00:18]} 31. Bc8 {[%emt 0:01:20]} Nc6 {[%emt 0:00:
00]} 32. Bxa6 {[%emt 0:00:23]} Nd4 {[%emt 0:00:17]} 33. Bd3 {[%emt 0:00:41]}
Bb4 {[%emt 0:00:55]} 34. Ra1 {[%emt 0:00:59]} b5 {[%emt 0:00:38]} 35. Ra7+ {
[%emt 0:00:28]} Kf6 {[%emt 0:00:29]} 36. Rb7 {[%emt 0:01:40]} Be7 {[%emt 0:00:
00]} 37. h4 {[%emt 0:01:35]} Ba3 {[%emt 0:00:31]} 38. Bxb5 {[%emt 0:02:29]}
Nxc2 {[%emt 0:00:12]} 39. Bc4 {[%emt 0:00:24]} Nd4 {[%emt 0:00:47]} 40. Rxf7+ {
[%emt 0:00:45]} Kg6 {[%emt 0:00:22]} 41. Kg2 {[%emt 0:32:18]} Nc2 {[%emt 0:00:
00]} 42. Rf5 {[%emt 0:01:40]} Kh6 {[%emt 0:00:00]} 43. Rxe5 {[%emt 0:00:00]}
Ne1+ {[%emt 0:00:00]} 44. Kf1 {[%emt 0:00:00]} Nf3 {[%emt 0:00:00]} 45. Rd5 {
[%emt 0:00:00]} Bb4 {[%emt 0:00:00]} 46. e5 {[%emt 0:00:00]} Nd2+ {[%emt 0:00:
00]} 47. Ke2 {[%emt 0:00:00]} Ne4 {[%emt 0:00:00]} 48. Rd3 {[%emt 0:00:00]} Kg6
{[%emt 0:00:00]} 49. Rf3 {[%emt 0:00:00]} Nd2 {[%emt 0:00:00]} 50. Bd3+ {
[%emt 0:00:00]} Kh6 {[%emt 0:00:00]} 51. Rf4 {[%emt 0:00:00]} Bc3 {[%emt 0:00:
00]} 52. e6 {[%emt 0:00:00]} 1-0

[Event "44th Chess Olympiad Women 2022"]
[Site "Chennai"]
[Date "2022.08.06"]
[Round "8.41"]
[White "Makwena, Christine"]
[Black "Junior, Ednasia"]
[Result "1/2-1/2"]
[WhiteElo "1609"]
[BlackElo "1849"]
[Annotator "NA RC"]
[PlyCount "61"]
[EventDate "2022.??.??"]
[TimeControl "60"]

1. d4 {[%emt 0:00:12]} Nf6 {[%emt 0:00:07]} 2. c4 {[%emt 0:00:06]} e5 {[%emt 0:
00:00]} 3. d5 {[%emt 0:00:48]} Bc5 {[%emt 0:00:08]} 4. Nc3 {[%emt 0:02:09]} d6
{[%emt 0:01:16]} 5. e4 {[%emt 0:00:57]} h6 {[%emt 0:04:31]} 6. h3 {[%emt 0:00:
00]} Nbd7 {[%emt 0:00:44]} 7. Bd3 {[%emt 0:00:50]} Bb4 {[%emt 0:01:41]} 8. Nge2
{[%emt 0:04:47]} O-O {[%emt 0:07:46]} 9. a3 {[%emt 0:00:40]} Bc5 {[%emt 0:00:
00]} 10. b4 {[%emt 0:02:27]} Bb6 {[%emt 0:01:22]} 11. Na4 {[%emt 0:01:13]} a5 {
[%emt 0:03:47]} 12. Nxb6 {[%emt 0:00:53]} cxb6 {[%emt 0:01:03]} 13. Be3 {
[%emt 0:00:49]} Kh7 {[%emt 0:03:31]} 14. Ng3 {[%emt 0:01:52]} g6 {[%emt 0:00:
00]} 15. O-O {[%emt 0:00:32]} Qc7 {[%emt 0:04:46]} 16. Qc2 {[%emt 0:04:28]} g5
{[%emt 0:03:52]} 17. Qe2 {[%emt 0:03:27]} Rg8 {[%emt 0:06:16]} 18. Qf3 {
[%emt 0:04:30]} Rg6 {[%emt 0:02:41]} 19. Qe2 {[%emt 0:03:20]} Ne8 {[%emt 0:00:
00]} 20. Nf5 {[%emt 0:04:17]} Ndf6 {[%emt 0:05:48]} 21. g4 {[%emt 0:07:19]}
Bxf5 {[%emt 0:04:46]} 22. exf5 {[%emt 0:00:06]} Rg8 {[%emt 0:01:24]} 23. f3 {
[%emt 0:00:31]} Ng7 {[%emt 0:04:41]} 24. Qf2 {[%emt 0:00:38]} b5 {[%emt 0:00:
00]} 25. cxb5 {[%emt 0:06:37]} axb4 {[%emt 0:00:21]} 26. axb4 {[%emt 0:00:50]}
Rxa1 {[%emt 0:00:35]} 27. Rxa1 {[%emt 0:00:38]} Qc3 {[%emt 0:00:15]} 28. Rd1 {
[%emt 0:00:32]} Qxb4 {[%emt 0:01:10]} 29. Qc2 {[%emt 0:01:02]} Ra8 {[%emt 0:00:
00]} 30. Qc7 {[%emt 0:05:08]} Qb3 {[%emt 0:03:52]} 31. Qc2 {[%emt 0:03:23]}
1/2-1/2

[Event "44th Chess Olympiad Women 2022"]
[Site "Chennai"]
[Date "2022.08.06"]
[Round "8.41"]
[White "Pires, Luzia"]
[Black "Mudodo, Refiloe Hazel"]
[Result "1/2-1/2"]
[WhiteElo "1842"]
[BlackElo "1604"]
[Annotator "NA RC"]
[PlyCount "65"]
[EventDate "2022.??.??"]
[TimeControl "60"]

1. d4 {[%emt 0:01:40]} d5 {[%emt 0:00:33]} 2. Nf3 {[%emt 0:00:37]} Nf6 {
[%emt 0:00:38]} 3. e3 {[%emt 0:00:56]} Bf5 {[%emt 0:01:17]} 4. Bd3 {[%emt 0:00:
00]} Bxd3 {[%emt 0:00:54]} 5. Qxd3 {[%emt 0:00:11]} c6 {[%emt 0:01:23]} 6. Nbd2
{[%emt 0:00:21]} e6 {[%emt 0:01:33]} 7. O-O {[%emt 0:00:12]} Nbd7 {[%emt 0:00:
00]} 8. e4 {[%emt 0:17:53]} dxe4 {[%emt 0:06:05]} 9. Nxe4 {[%emt 0:00:12]} Nxe4
{[%emt 0:00:08]} 10. Qxe4 {[%emt 0:00:05]} Nf6 {[%emt 0:00:11]} 11. Qe2 {
[%emt 0:02:01]} Be7 {[%emt 0:09:36]} 12. h3 {[%emt 0:00:30]} O-O {[%emt 0:00:
00]} 13. Bf4 {[%emt 0:01:50]} h6 {[%emt 0:01:55]} 14. c3 {[%emt 0:00:19]} Bd6 {
[%emt 0:01:38]} 15. Be5 {[%emt 0:00:59]} Bxe5 {[%emt 0:04:53]} 16. Nxe5 {
[%emt 0:00:30]} Qb6 {[%emt 0:05:24]} 17. Rfd1 {[%emt 0:07:44]} Rad8 {[%emt 0:
00:00]} 18. Qc2 {[%emt 0:15:19]} c5 {[%emt 0:07:08]} 19. dxc5 {[%emt 0:03:48]}
Qxc5 {[%emt 0:04:47]} 20. Nd3 {[%emt 0:09:23]} Qf5 {[%emt 0:02:05]} 21. Nb4 {
[%emt 0:02:53]} Qxc2 {[%emt 0:04:39]} 22. Nxc2 {[%emt 0:00:02]} Ne4 {[%emt 0:
00:00]} 23. Ne3 {[%emt 0:00:31]} Rfe8 {[%emt 0:04:03]} 24. Kf1 {[%emt 0:04:26]}
Kf8 {[%emt 0:02:00]} 25. Ke2 {[%emt 0:03:14]} Ke7 {[%emt 0:00:38]} 26. Rxd8 {
[%emt 0:01:50]} Rxd8 {[%emt 0:00:38]} 27. Rd1 {[%emt 0:00:02]} Rxd1 {[%emt 0:
00:00]} 28. Nxd1 {[%emt 0:00:07]} Kd6 {[%emt 0:00:09]} 29. Kd3 {[%emt 0:00:51]}
Nf6 {[%emt 0:04:35]} 30. c4 {[%emt 0:02:23]} Nh5 {[%emt 0:02:38]} 31. Kd4 {
[%emt 0:05:07]} Nf4 {[%emt 0:05:06]} 32. c5+ {[%emt 0:02:25]} Kc6 {[%emt 0:00:
00]} 33. Ne3 {[%emt 0:00:18]} 1/2-1/2

[Event "44th Chess Olympiad Women 2022"]
[Site "Chennai"]
[Date "2022.08.06"]
[Round "8.41"]
[White "Zengeni, Tatenda Melisa"]
[Black "Paulo, Jemima"]
[Result "0-1"]
[WhiteElo "1553"]
[BlackElo "1850"]
[Annotator "NA RC"]
[PlyCount "80"]
[EventDate "2022.??.??"]
[TimeControl "60"]

1. Nf3 {[%emt 0:00:05]} Nf6 {[%emt 0:00:11]} 2. b3 {[%emt 0:00:25]} g6 {
[%emt 0:00:15]} 3. Bb2 {[%emt 0:00:06]} Bg7 {[%emt 0:00:11]} 4. d4 {[%emt 0:00:
00]} O-O {[%emt 0:00:19]} 5. e3 {[%emt 0:01:10]} d6 {[%emt 0:01:09]} 6. Be2 {
[%emt 0:00:18]} Nbd7 {[%emt 0:00:22]} 7. c4 {[%emt 0:06:02]} c6 {[%emt 0:00:23]
} 8. Qc2 {[%emt 0:00:40]} Qc7 {[%emt 0:04:04]} 9. Nbd2 {[%emt 0:00:33]} e5 {
[%emt 0:00:11]} 10. O-O {[%emt 0:11:35]} h6 {[%emt 0:02:45]} 11. Rac1 {[%emt 0:
00:00]} Re8 {[%emt 0:01:14]} 12. Bd3 {[%emt 0:07:49]} Nh7 {[%emt 0:01:26]} 13.
e4 {[%emt 0:01:13]} Nhf8 {[%emt 0:01:20]} 14. d5 {[%emt 0:02:32]} Nc5 {[%emt 0:
00:00]} 15. Rfe1 {[%emt 0:02:31]} f5 {[%emt 0:01:58]} 16. b4 {[%emt 0:01:07]}
Nxd3 {[%emt 0:00:43]} 17. Qxd3 {[%emt 0:00:15]} a5 {[%emt 0:00:12]} 18. a3 {
[%emt 0:04:39]} c5 {[%emt 0:04:54]} 19. b5 {[%emt 0:06:43]} b6 {[%emt 0:00:09]}
20. a4 {[%emt 0:05:13]} Ra7 {[%emt 0:00:15]} 21. Bc3 {[%emt 0:01:20]} Qf7 {
[%emt 0:00:44]} 22. Qe2 {[%emt 0:06:38]} f4 {[%emt 0:00:14]} 23. Qd3 {[%emt 0:
00:00]} g5 {[%emt 0:00:08]} 24. Nf1 {[%emt 0:13:09]} Bf6 {[%emt 0:00:15]} 25.
Kh1 {[%emt 0:01:35]} h5 {[%emt 0:01:06]} 26. Ng1 {[%emt 0:01:01]} g4 {[%emt 0:
00:00]} 27. Bd2 {[%emt 0:03:05]} h4 {[%emt 0:00:21]} 28. g3 {[%emt 0:02:54]} f3
{[%emt 0:00:09]} 29. Nxf3 {[%emt 0:02:57]} gxf3 {[%emt 0:00:17]} 30. Qxf3 {
[%emt 0:00:05]} Bd8 {[%emt 0:02:19]} 31. Qxf7+ {[%emt 0:02:25]} Rxf7 {[%emt 0:
00:00]} 32. f4 {[%emt 0:00:16]} hxg3 {[%emt 0:05:41]} 33. hxg3 {[%emt 0:01:47]}
Bg4 {[%emt 0:00:11]} 34. Nh2 {[%emt 0:00:52]} Bh3 {[%emt 0:02:39]} 35. Rg1 {
[%emt 0:01:49]} Rg7 {[%emt 0:04:01]} 36. f5 {[%emt 0:02:31]} Nd7 {[%emt 0:00:
00]} 37. Rce1 {[%emt 0:03:03]} Nf6 {[%emt 0:00:16]} 38. Bh6 {[%emt 0:01:59]}
Rh7 {[%emt 0:00:06]} 39. Bg5 {[%emt 0:00:15]} Ng4 {[%emt 0:01:38]} 40. Be3 {
[%emt 0:00:55]} Nxh2 {[%emt 0:03:29]} 0-1